bitfinex-derivatives/quotes_BTCF0:USTF0_20210111
["timestamp","ask_amount","ask_price","bid_price","bid_amount"]
[1610328533521,3.74942608,37734.0,37731.0,0.02536354]
[1610328533922,3.74942608,37734.0,37733.0,0.00027251]
[1610328534222,3.74942608,37734.0,37732.0,0.00027251]
[1610328534422,3.74942608,37734.0,37733.0,0.00027251]
[1610328534923,3.74942608,37734.0,37731.0,0.02536354]
[1610328535123,3.74942608,37734.0,37733.0,0.00027251]
[1610328535424,3.74942608,37734.0,37732.0,0.00027251]
[1610328535824,3.74942608,37734.0,37731.0,0.02536352]
[1610328536023,3.74942608,37734.0,37733.0,0.00027249]
[1610328536224,3.74942608,37734.0,37732.0,0.00027249]
[1610328536523,3.74942608,37734.0,37731.0,0.02536352]
[1610328536724,3.74942608,37734.0,37733.0,0.00027249]
[1610328537126,3.74942608,37734.0,37732.0,0.00027249]
[1610328537325,3.74942608,37734.0,37731.0,0.02536352]
[1610328537526,3.74942608,37734.0,37733.0,0.00027249]
[1610328537827,3.74942608,37734.0,37732.0,0.00027249]
[1610328538027,3.74942608,37734.0,37731.0,0.02536352]
[1610328538428,3.74942608,37734.0,37733.0,0.00027249]
[1610328538627,0.13632608,37734.0,37732.0,0.00027249]
[1610328538828,0.13632608,37734.0,37731.0,0.02536352]
[1610328539230,0.13632608,37734.0,37733.0,0.00027249]
[1610328539430,0.13632608,37734.0,37732.0,0.00027249]
[1610328539630,0.13632608,37734.0,37733.0,0.00027249]
[1610328540233,0.13632608,37734.0,37731.0,0.02536352]
[1610328540433,0.13632608,37734.0,37733.0,0.00027249]
[1610328540832,0.13632608,37734.0,37732.0,0.00027249]
[1610328541031,0.13632608,37734.0,37731.0,0.02536352]
[1610328541233,0.13632608,37734.0,37733.0,0.00027251]
[1610328541634,0.13632608,37734.0,37731.0,0.02536354]
[1610328541834,0.13632608,37734.0,37733.0,0.00027251]
[1610328542034,0.13632608,37734.0,37732.0,0.00027251]
[1610328542436,0.13632608,37734.0,37733.0,0.00027251]
[1610328542836,0.13632608,37734.0,37731.0,0.02536357]
[1610328543134,0.13632608,37734.0,37733.0,0.00027254]
[1610328543336,0.13632608,37734.0,37732.0,0.00027254]
[1610328543735,0.13632608,37734.0,37733.0,0.00027254]
[1610328544135,0.13632608,37734.0,37731.0,0.02536663]
[1610328544537,0.13632608,37734.0,37733.0,0.0002756]
[1610328544738,0.13632608,37734.0,37731.0,0.02536666]
[1610328544937,0.13632608,37734.0,37733.0,0.00027563]
[1610328545337,0.13632608,37734.0,37731.0,0.02536666]
[1610328545538,0.13632608,37734.0,37733.0,0.00027563]
[1610328545738,0.13632608,37734.0,37732.0,0.00027566]
[1610328546140,0.13632608,37734.0,37733.0,0.00027566]
[1610328546341,0.13632608,37734.0,37722.0,0.02669031]
[1610328546542,0.13632608,37734.0,37733.0,0.00027566]
[1610328546943,0.13632608,37734.0,37723.0,0.00027566]
[1610328547142,0.13632608,37734.0,37722.0,0.02641465]
[1610328547143,0.13632608,37734.0,37733.0,0.00027566]
[1610328547343,0.13632608,37734.0,37724.0,0.00027566]
[1610328547543,0.13632608,37734.0,37722.0,0.02669031]
[1610328547943,0.13632608,37734.0,37725.0,0.00027566]
[1610328548144,0.13632608,37726.0,37723.0,0.00027566]
[1610328548345,0.13632608,37726.0,37722.0,0.02669031]
[1610328548746,0.13632608,37726.0,37724.0,0.00027566]
[1610328548945,0.13632608,37726.0,37723.0,0.00027566]
[1610328549147,0.13632608,37726.0,37725.0,0.00027566]
[1610328549547,0.13632608,37726.0,37724.0,0.00027566]
[1610328549749,0.13632608,37726.0,37725.0,0.00027566]
[1610328550352,0.13632608,37726.0,37722.0,0.02669031]
[1610328550552,0.13632608,37726.0,37725.0,0.00027566]
[1610328550751,0.13632608,37726.0,37723.0,0.00027566]
[1610328551151,0.13632608,37726.0,37725.0,0.00027566]
[1610328551351,0.13632608,37726.0,37722.0,0.02669031]
[1610328551553,0.13632608,37726.0,37725.0,0.00027566]
[1610328551954,0.13632608,37726.0,37723.0,0.00027566]
[1610328552155,0.13632608,37726.0,37722.0,0.02669031]
[1610328552354,0.13632608,37726.0,37724.0,0.00027566]
[1610328552955,0.13632608,37726.0,37722.0,0.02669031]
[1610328553155,0.13632608,37726.0,37725.0,0.00027566]
[1610328553557,0.13632608,37726.0,37723.0,0.00027566]
[1610328553757,0.13632608,37726.0,37722.0,0.02669031]
[1610328553957,0.13632608,37726.0,37724.0,0.00027566]
[1610328554360,0.13632608,37726.0,37723.0,0.00027566]
[1610328554559,0.13632608,37726.0,37722.0,0.02669031]
[1610328554759,0.13632608,37726.0,37724.0,0.00027566]
[1610328554959,0.13632608,37726.0,37723.0,0.00027566]
[1610328555360,0.13632608,37726.0,37725.0,0.00027566]
[1610328555559,0.13632608,37726.0,37724.0,0.00027566]
[1610328555759,0.13632608,37726.0,37725.0,0.00027566]
[1610328556359,0.13632608,37726.0,37722.0,0.02669033]
[1610328556561,0.13632608,37726.0,37725.0,0.00027568]
[1610328556963,0.13632608,37726.0,37723.0,0.00027568]
[1610328557161,0.13632608,37726.0,37725.0,0.00027568]
[1610328557362,0.13632608,37726.0,37722.0,0.02669033]
[1610328557763,0.13632608,37726.0,37725.0,0.00027568]
[1610328557961,0.13632608,37726.0,37723.0,0.00027568]
[1610328558162,0.13632608,37726.0,37722.0,0.02669033]
[1610328558563,0.13632608,37726.0,37724.0,0.00027568]
[1610328558762,0.13632608,37726.0,37722.0,0.02669037]
[1610328558962,0.13632608,37726.0,37725.0,0.00027572]
[1610328559362,0.13632608,37726.0,37723.0,0.00027572]
[1610328559564,0.13632608,37726.0,37722.0,0.02669037]
[1610328559763,0.13632608,37726.0,37724.0,0.00027572]
[1610328559964,4.1455,37725.0,37724.0,0.00027572]
[1610328560164,4.1455,37725.0,37723.0,0.00027572]
[1610328560365,4.1455,37725.0,37722.0,0.02669037]
[1610328560565,4.1455,37725.0,37724.0,0.00027572]
[1610328560966,4.1455,37725.0,37723.0,0.00027572]
[1610328561166,4.1455,37725.0,37724.0,0.00027572]
[1610328561566,4.1455,37725.0,37722.0,0.02669037]
[1610328561767,4.1455,37725.0,37722.0,0.00027572]
[1610328561967,4.1455,37725.0,37724.0,0.00027572]
[1610328562168,4.1455,37725.0,37723.0,0.00027572]
[1610328562366,4.1455,37725.0,37724.0,0.00027572]
[1610328562967,4.1455,37725.0,37722.0,0.00027572]
[1610328563367,5.6455,37725.0,37722.0,0.00027572]
[1610328563768,7.57952941,37725.0,37722.0,0.00027572]
[1610328563968,1.0,37723.0,37703.0,0.02671229]
[1610328564170,0.13632608,37704.0,37703.0,0.02671229]
[1610328564370,0.13632608,37704.0,37702.0,3.8473]
[1610328564571,0.13632608,37704.0,37703.0,0.0267181]
[1610328567272,0.13632608,37704.0,37703.0,0.00027581]
[1610328568074,0.13632608,37704.0,37703.0,0.02671765]
[1610328568475,3.96352608,37704.0,37703.0,0.02671765]
[1610328569380,3.96352608,37704.0,37703.0,0.02671764]
[1610328581998,3.96352608,37704.0,37703.0,0.0002758]
[1610328582198,3.96352608,37704.0,37703.0,0.02672146]
[1610328584999,3.96352608,37704.0,37703.0,0.0002758]
[1610328585201,3.96352608,37704.0,37703.0,0.02672148]
[1610328585602,3.96352608,37704.0,37703.0,0.0002758]
[1610328586503,3.96352608,37704.0,37703.0,0.0267227]
[1610328588805,3.96352608,37704.0,37703.0,0.0002758]
[1610328589306,3.96352608,37704.0,37703.0,0.02672295]
[1610328592111,3.96352608,37704.0,37694.0,0.02672665]
[1610328592310,3.8272,37704.0,37703.0,0.0267268]
[1610328592510,3.8272,37704.0,37695.0,0.02672721]
[1610328592910,3.8272,37704.0,37703.0,0.02672706]
[1610328593110,3.8272,37704.0,37694.0,0.02672651]
[1610328593313,3.8272,37704.0,37703.0,0.02672703]
[1610328593511,3.8272,37704.0,37703.0,0.00027588]
[1610328593710,3.8272,37704.0,37695.0,0.02672724]
[1610328593911,3.8272,37704.0,37694.0,0.02672704]
[1610328594111,3.8272,37704.0,37696.0,0.02672696]
[1610328594311,0.13632608,37697.0,37696.0,0.02672696]
[1610328594511,0.13632608,37697.0,37695.0,0.02672768]
[1610328594713,0.13632608,37697.0,37693.0,0.08112]
[1610328594912,0.13632608,37697.0,37696.0,0.02672776]
[1610328595111,0.13632608,37697.0,37694.0,0.02672793]
[1610328595512,0.13632608,37697.0,37696.0,0.02672806]
[1610328595712,0.13632608,37697.0,37695.0,0.02672963]
[1610328595913,0.13632608,37697.0,37685.0,0.02672866]
[1610328596313,3.8272,37704.0,37696.0,0.02672863]
[1610328596513,3.8272,37704.0,37686.0,0.02672857]
[1610328596714,3.8272,37704.0,37697.0,0.00027591]
[1610328597015,3.8272,37704.0,37687.0,0.02673049]
[1610328597416,1.76696839,37708.0,37698.0,0.00027591]
[1610328597616,1.76696839,37708.0,37685.0,0.02672993]
[1610328597817,1.76696839,37708.0,37699.0,0.00027591]
[1610328598217,1.76696839,37708.0,37686.0,0.00027591]
[1610328598421,0.13632608,37687.0,37685.0,0.02645402]
[1610328598917,0.13632608,37687.0,37685.0,0.02672993]
[1610328599618,0.13632608,37687.0,37686.0,0.0002759]
[1610328599819,0.13632608,37687.0,37686.0,0.02672915]
[1610328600018,0.13632608,37687.0,37685.0,0.02672913]
[1610328600218,0.13632608,37687.0,37686.0,0.02672981]
[1610328600820,0.13632608,37687.0,37684.0,0.10836]
[1610328600821,0.13632608,37687.0,37685.0,0.0267299]
[1610328601022,0.13632608,37687.0,37684.0,0.10836]
[1610328601023,0.13632608,37687.0,37686.0,0.02672917]
[1610328601622,0.13632608,37687.0,37685.0,0.02672767]
[1610328601822,0.13632608,37687.0,37686.0,0.02672552]
[1610328602424,0.13632608,37687.0,37685.0,0.02672579]
[1610328602623,0.13632608,37687.0,37686.0,0.02672602]
[1610328603124,0.13632608,37687.0,37685.0,0.0267256]
[1610328603325,0.13632608,37687.0,37685.0,0.02644973]
[1610328603528,0.13632608,37687.0,37686.0,0.00027587]
[1610328603925,0.13632608,37687.0,37685.0,0.0267256]
[1610328604125,0.13632608,37687.0,37686.0,0.00027587]
[1610328604725,0.13632608,37687.0,37685.0,0.02672501]
[1610328604926,0.13632608,37687.0,37686.0,0.00027528]
[1610328605525,0.13632608,37687.0,37685.0,0.02672501]
[1610328605725,0.13632608,37687.0,37686.0,0.00027528]
[1610328606326,0.13632608,37687.0,37685.0,0.02672501]
[1610328606525,0.13632608,37687.0,37686.0,0.00027528]
[1610328607128,0.13632608,37687.0,37685.0,0.02672501]
[1610328607327,0.13632608,37687.0,37686.0,0.00027528]
[1610328607928,0.13632608,37687.0,37685.0,0.02672499]
[1610328608129,0.13632608,37687.0,37686.0,0.00027526]
[1610328608730,0.13632608,37687.0,37685.0,0.02672499]
[1610328608928,0.13632608,37687.0,37686.0,0.00027528]
[1610328609529,0.13632608,37687.0,37685.0,0.02672501]
[1610328609729,0.13632608,37687.0,37686.0,0.00027528]
[1610328610330,0.13632608,37687.0,37685.0,0.02672501]
[1610328610532,0.13632608,37687.0,37686.0,0.00027526]
[1610328611132,0.13632608,37687.0,37685.0,0.02672499]
[1610328611332,0.13632608,37687.0,37686.0,0.00027524]
[1610328611530,0.13632608,37687.0,37685.0,0.02672497]
[1610328611930,0.13632608,37687.0,37686.0,0.00027524]
[1610328612133,3.2928,37696.0,37686.0,0.00027524]
[1610328612330,3.2928,37696.0,37695.0,0.13632608]
[1610328612530,3.2928,37696.0,37695.0,0.22762608]
[1610328612931,3.2928,37696.0,37695.0,0.2540912]
[1610328616336,0.13632608,37696.0,37695.0,3.9525912]
[1610328616736,0.13632608,37696.0,37695.0,3.92612608]
[1610328616935,0.13632608,37696.0,37695.0,3.86830372]
[1610328621637,0.13632608,37696.0,37695.0,3.86838167]
[1610328625441,0.2857,37718.0,37695.0,3.86838167]
[1610328625841,3.224,37717.0,37696.0,0.07857606]
[1610328626442,3.224,37717.0,37699.0,0.13632608]
[1610328626842,3.224,37717.0,37700.0,0.00027523]
[1610328627043,3.224,37717.0,37700.0,0.02649252]
[1610328628446,0.13632608,37701.0,37700.0,0.02649252]
[1610328648664,3.3094,37715.0,37700.0,0.02649252]
[1610328650668,0.13632608,37704.0,37703.0,0.13632608]
[1610328651069,0.13632608,37704.0,37703.0,0.15800664]
[1610328652171,3.3094,37715.0,37703.0,0.15800664]
[1610328652371,3.3094,37715.0,37703.0,0.27202664]
[1610328652573,3.3094,37715.0,37714.0,0.13632608]
[1610328652772,3.3094,37715.0,37714.0,0.24270608]
[1610328653172,3.3094,37715.0,37714.0,0.26438165]
[1610328653971,0.2796,37732.0,37714.0,0.26438165]
[1610328654372,0.2796,37732.0,37715.0,0.0216672]
[1610328654573,0.2796,37732.0,37728.0,0.13632608]
[1610328654772,0.2796,37732.0,37728.0,0.23483608]
[1610328654974,0.2796,37732.0,37729.0,0.02166713]
[1610328656578,0.13632608,37730.0,37729.0,0.02166713]
[1610328656778,0.13632608,37730.0,37729.0,0.00026266]
[1610328663387,3.42192608,37730.0,37729.0,0.00026266]
[1610328672795,0.13632608,37730.0,37729.0,0.00026266]
[1610328676500,0.13632608,37730.0,37729.0,0.02110758]
[1610328677701,0.13632608,37730.0,37729.0,0.00026266]
[1610328679808,0.13632608,37730.0,37722.0,0.00026135]
[1610328680009,0.13632608,37730.0,37729.0,0.00026135]
[1610328680208,0.13632608,37730.0,37723.0,0.00026135]
[1610328680611,0.13632608,37730.0,37729.0,0.00026135]
[1610328680808,0.13632608,37730.0,37721.0,3.2933]
[1610328680809,0.13632608,37730.0,37724.0,0.00026135]
[1610328681008,0.13632608,37730.0,37729.0,0.00026137]
[1610328681410,0.13632608,37730.0,37725.0,0.00026137]
[1610328681610,0.13632608,37730.0,37722.0,0.00026137]
[1610328681810,0.13632608,37730.0,37726.0,0.00026137]
[1610328682210,4.426,37726.0,37723.0,0.00026137]
[1610328682410,4.426,37726.0,37722.0,0.02084912]
[1610328682611,4.426,37726.0,37714.0,0.10638]
[1610328682612,4.426,37726.0,37724.0,0.00026135]
[1610328682812,0.13632608,37725.0,37723.0,0.00026135]
[1610328683213,0.13632608,37725.0,37716.0,0.02084915]
[1610328683412,0.13632608,37725.0,37724.0,0.00026135]
[1610328683614,0.13632608,37725.0,37717.0,0.02110972]
[1610328684016,0.13632608,37725.0,37724.0,0.00026132]
[1610328684215,0.13632608,37725.0,37714.0,0.10638]
[1610328684216,0.13632608,37725.0,37718.0,0.02110687]
[1610328684414,0.13632608,37725.0,37715.0,0.02110674]
[1610328684714,4.426,37726.0,37721.0,0.13632608]
[1610328685314,4.426,37726.0,37722.0,0.02110529]
[1610328685814,4.426,37726.0,37722.0,0.10858529]
[1610328686219,4.426,37726.0,37723.0,0.0002613]
[1610328686417,4.426,37726.0,37723.0,0.02110459]
[1610328686817,0.13632608,37724.0,37723.0,0.02110459]
[1610328687320,0.13632608,37724.0,37723.0,0.02110458]
[1610328688221,0.13632608,37724.0,37723.0,0.02110455]
[1610328688621,3.65072608,37724.0,37723.0,0.02110455]
[1610328691729,3.71972608,37724.0,37723.0,0.02110455]
[1610328694233,3.71972608,37724.0,37723.0,0.00026126]
[1610328694430,3.71972608,37724.0,37723.0,0.02110798]
[1610328701137,3.32792608,37724.0,37723.0,0.02110798]
[1610328710448,0.13632608,37724.0,37723.0,0.02110798]
[1610328718560,0.71542608,37724.0,37723.0,0.02110798]
[1610328720865,0.71542608,37724.0,37718.0,0.02113091]
[1610328721067,0.71542608,37724.0,37723.0,0.02086991]
[1610328721267,0.71542608,37724.0,37723.0,0.02113133]
[1610328721466,0.71542608,37724.0,37719.0,0.021132]
[1610328721666,2.49447501,37724.0,37723.0,0.00026142]
[1610328721970,1.77906871,37721.0,37720.0,0.02113381]
[1610328722168,1.77906871,37721.0,37718.0,0.02087296]
[1610328722369,0.08811,37722.0,37718.0,0.02087296]
[1610328722569,0.08811,37722.0,37720.0,0.00026146]
[1610328722769,0.00032453,37721.0,37719.0,0.00026146]
[1610328722971,1.91474916,37720.0,37718.0,0.00026146]
[1610328723370,1.91474916,37720.0,37719.0,0.00026146]
[1610328723770,3.85425623,37720.0,37718.0,0.00026149]
[1610328724069,0.13665064,37720.0,37719.0,0.00026149]
[1610328724370,3.85138624,37720.0,37718.0,0.00026149]
[1610328724570,3.85138624,37720.0,37719.0,0.000263]
[1610328724770,2.07476654,37720.0,37719.0,0.000263]
[1610328724970,2.07444198,37720.0,37719.0,0.000263]
[1610328725171,3.85142139,37720.0,37718.0,0.000263]
[1610328725371,3.85142139,37720.0,37719.0,0.00026304]
[1610328725573,0.13632608,37720.0,37719.0,0.00026304]
[1610328725872,2.07382819,37720.0,37718.0,0.00026304]
[1610328726273,2.07382819,37720.0,37719.0,0.00026306]
[1610328726472,2.07350358,37720.0,37719.0,0.00026306]
[1610328726674,0.1366507,37720.0,37718.0,0.00026306]
[1610328727072,2.0730067,37720.0,37719.0,0.00026306]
[1610328727272,3.57268208,37720.0,37717.0,3.6611]
[1610328727873,1.93559893,37718.0,37717.0,3.6611]
[1610328728773,1.93559893,37718.0,37702.0,3.5203]
[1610328728973,0.13632608,37704.0,37670.0,0.13632608]
[1610328729374,0.13632608,37704.0,37703.0,0.00026309]
[1610328729974,0.13632608,37704.0,37696.0,0.00026309]
[1610328730175,0.13632608,37704.0,37703.0,0.00026309]
[1610328730374,0.13632608,37704.0,37697.0,0.00026309]
[1610328730576,0.13632608,37704.0,37703.0,0.00026309]
[1610328730977,0.13632608,37704.0,37696.0,0.00026309]
[1610328731177,0.13632608,37704.0,37674.0,0.13632608]
[1610328731578,0.13632608,37704.0,37697.0,0.0002631]
[1610328731777,0.13632608,37704.0,37675.0,0.02175844]
[1610328731979,0.13632608,37704.0,37698.0,0.0002631]
[1610328732178,0.13632608,37704.0,37675.0,0.02175844]
[1610328732577,0.13632608,37704.0,37699.0,0.00026312]
[1610328732777,0.13632608,37704.0,37695.0,0.09609]
[1610328732979,0.13632608,37696.0,37695.0,0.09609]
[1610328733577,0.13632608,37696.0,37695.0,0.09635312]
[1610328733977,0.13632608,37696.0,37695.0,0.00026312]
[1610328734578,0.13632608,37696.0,37647.0,0.02176461]
[1610328734977,0.07188,37696.0,37653.0,0.13632608]
[1610328735179,0.07188,37696.0,37653.0,0.21019608]
[1610328735379,0.07188,37696.0,37654.0,0.02176966]
[1610328735579,0.2941,37695.0,37654.0,0.02176966]
[1610328736581,1.7941,37695.0,37654.0,0.02176966]
[1610328736781,1.7941,37695.0,37654.0,0.0002632]
[1610328736983,0.13632608,37655.0,37653.0,0.07387]
[1610328737181,0.13632608,37655.0,37654.0,0.00026328]
[1610328737981,0.13632608,37655.0,37654.0,0.00026336]
[1610328738383,0.13632608,37655.0,37654.0,0.00026338]
[1610328738581,3.67592608,37655.0,37654.0,0.00026338]
[1610328739181,3.67592608,37655.0,37645.0,0.1078]
[1610328739583,3.67592608,37655.0,37646.0,0.00026343]
[1610328739984,3.67592608,37655.0,37637.0,0.11591]
[1610328740185,3.75783608,37655.0,37637.0,0.11591]
[1610328740986,0.13632608,37638.0,37637.0,0.11591]
[1610328741489,0.13632608,37638.0,37629.0,3.3856]
[1610328742887,0.13632608,37630.0,37629.0,3.3856]
[1610328746192,1.13632608,37630.0,37629.0,3.3856]
[1610328748194,0.13632608,37630.0,37579.0,0.1556]
[1610328748495,0.13632608,37630.0,37596.0,3.9995]
[1610328748694,0.13632608,37630.0,37596.0,4.07438]
[1610328748894,0.2959,37629.0,37596.0,4.07438]
[1610328749097,0.13632608,37600.0,37599.0,0.13632608]
[1610328749294,0.13632608,37600.0,37596.0,4.07438]
[1610328752898,1.2959,37629.0,37596.0,4.07438]
[1610328753097,0.13632608,37603.0,37599.0,0.13632608]
[1610328753299,1.2959,37629.0,37599.0,0.13632608]
[1610328753898,1.0,37629.0,37599.0,0.13632608]
[1610328754098,0.2897,37634.0,37599.0,0.13632608]
[1610328754299,0.2779,37633.0,37599.0,0.13632608]
[1610328755097,0.2779,37633.0,37609.0,0.13632608]
[1610328755498,0.2779,37633.0,37609.0,0.23938608]
[1610328757097,0.13632608,37610.0,37609.0,0.23938608]
[1610328758502,0.13632608,37610.0,37609.0,0.10306]
[1610328760604,0.13632608,37610.0,37599.0,0.13632608]
[1610328761005,0.13632608,37600.0,37599.0,0.13632608]
[1610328763909,0.13632608,37600.0,37596.0,0.07488]
[1610328764108,0.13632608,37600.0,37569.0,0.1556]
[1610328764308,0.13632608,37600.0,37543.0,0.1556]
[1610328764708,0.13632608,37600.0,37544.0,0.0002636]
[1610328764908,0.13632608,37600.0,37544.0,0.0835536]
[1610328765110,0.2779,37633.0,37589.0,0.13632608]
[1610328765310,0.2779,37633.0,37589.0,0.07497]
[1610328765510,0.00032535,37632.0,37589.0,0.07497]
[1610328766913,4.0846,37630.0,37589.0,0.07497]
[1610328767113,0.13632608,37602.0,37601.0,0.13632608]
[1610328767517,0.13632608,37602.0,37589.0,0.07497]
[1610328769116,0.13632608,37590.0,37589.0,0.07497]
[1610328770015,0.06507306,37629.0,37589.0,0.07497]
[1610328770416,0.06507306,37629.0,37586.0,3.4809]
[1610328770615,0.02910086,37629.0,37589.0,0.09712]
[1610328770816,0.02910099,37628.0,37589.0,0.09712]
[1610328771015,0.02910099,37628.0,37614.0,0.13632608]
[1610328771217,0.02910099,37628.0,37614.0,0.25263608]
[1610328771419,0.02909543,37629.0,37614.0,0.25263608]
[1610328771618,0.02909578,37627.0,37614.0,0.25263608]
[1610328771817,0.02909457,37628.0,37614.0,0.25263608]
[1610328772217,0.00032524,37626.0,37614.0,0.25263608]
[1610328772416,0.00032524,37629.0,37614.0,0.25263608]
[1610328772616,0.00032524,37625.0,37614.0,0.25263608]
[1610328772918,0.00032524,37628.0,37614.0,0.25263608]
[1610328773116,0.13632608,37615.0,37614.0,0.25263608]
[1610328774420,0.13632608,37615.0,37614.0,0.11631]
[1610328776525,0.13632608,37615.0,37599.0,3.137]
[1610328776926,0.13632608,37615.0,37600.0,0.00026355]
[1610328777125,0.13632608,37601.0,37600.0,0.10171355]
[1610328778225,0.13632608,37601.0,37600.0,0.10145]
[1610328778826,0.13632608,37601.0,37600.0,0.10171362]
[1610328782131,0.2779,37633.0,37600.0,0.10171362]
[1610328782531,0.00032531,37632.0,37601.0,0.00026359]
[1610328783132,0.13632608,37602.0,37601.0,0.00026359]
[1610328791239,0.13632608,37602.0,37601.0,0.01899019]
[1610328792243,0.13632608,37602.0,37601.0,0.00026359]
[1610328793241,0.13632608,37602.0,37590.0,0.00025675]
[1610328793441,0.13632608,37602.0,37601.0,0.00025677]
[1610328793841,0.13632608,37602.0,37591.0,0.00025677]
[1610328794041,0.13632608,37602.0,37601.0,0.00025677]
[1610328794243,0.13632608,37602.0,37592.0,0.00025677]
[1610328794842,0.13632608,37602.0,37590.0,0.00025677]
[1610328795043,0.13632608,37602.0,37593.0,0.00025677]
[1610328795243,0.2758,37616.0,37593.0,0.00025677]
[1610328795443,0.2758,37616.0,37591.0,0.00025677]
[1610328795643,0.2758,37616.0,37594.0,0.00025677]
[1610328795843,0.2758,37616.0,37590.0,0.00025675]
[1610328796244,0.08002,37617.0,37595.0,0.00025672]
[1610328796445,0.08002,37617.0,37591.0,0.00025669]
[1610328796645,0.2997,37626.0,37596.0,0.00025665]
[1610328797044,0.2997,37626.0,37592.0,0.00025662]
[1610328797246,0.2997,37626.0,37601.0,0.13632608]
[1610328797446,0.2997,37626.0,37601.0,0.22205608]
[1610328797746,0.2997,37626.0,37602.0,0.00025662]
[1610328798347,0.2997,37626.0,37602.0,0.0189769]
[1610328798547,0.2997,37626.0,37602.0,0.00025662]
[1610328798747,0.2997,37626.0,37603.0,0.00025662]
[1610328799148,0.13632608,37604.0,37603.0,0.00025662]
[1610328799347,0.13632608,37604.0,37602.0,0.00025667]
[1610328800148,0.13632608,37604.0,37590.0,0.00025672]
[1610328800350,0.13632608,37604.0,37603.0,0.00025681]
[1610328800748,0.13632608,37604.0,37591.0,0.00025681]
[1610328800949,0.13632608,37604.0,37590.0,0.00025681]
[1610328801149,0.13632608,37591.0,37589.0,0.09712]
[1610328801348,0.13632608,37591.0,37587.0,4.4076]
[1610328801549,0.13632608,37591.0,37590.0,0.00025681]
[1610328801750,0.13632608,37591.0,37590.0,0.09573681]
[1610328801951,0.13632608,37591.0,37590.0,0.09548]
[1610328802351,0.13632608,37591.0,37590.0,0.09573681]
[1610328803551,0.13632608,37591.0,37590.0,0.11448669]
[1610328804553,0.62932608,37591.0,37590.0,0.11448669]
[1610328804754,0.13632608,37591.0,37590.0,0.11448669]
[1610328806154,0.13632608,37591.0,37590.0,0.1144867]
[1610328808555,0.72872608,37591.0,37590.0,0.1144867]
[1610328809961,0.5924,37591.0,37590.0,0.1144867]
[1610328811264,0.5924,37591.0,37590.0,0.25081278]
[1610328813665,0.5924,37591.0,37590.0,0.1144867]
[1610328814065,0.13632608,37592.0,37590.0,0.1144867]
[1610328814466,0.13632608,37592.0,37591.0,0.01902024]
[1610328816268,0.5907,37626.0,37591.0,0.01902024]
[1610328817269,0.5907,37626.0,37601.0,0.13632608]
[1610328817470,0.5907,37626.0,37601.0,0.21677608]
[1610328817871,0.5907,37626.0,37602.0,0.01901808]
[1610328819272,0.5907,37626.0,37605.0,0.13632608]
[1610328819673,0.5907,37626.0,37606.0,0.01901432]
[1610328821173,0.5907,37626.0,37612.0,0.13632608]
[1610328821374,0.5907,37626.0,37612.0,0.20958608]
[1610328821574,0.2997,37626.0,37612.0,0.20958608]
[1610328821773,0.2997,37626.0,37613.0,0.01901353]
[1610328822173,0.2997,37626.0,37613.0,0.0002567]
[1610328822374,0.2997,37626.0,37614.0,0.0002567]
[1610328822573,0.2997,37626.0,37613.0,0.0002567]
[1610328823175,0.13632608,37614.0,37613.0,0.0002567]
[1610328832780,0.13632608,37614.0,37613.0,0.01901643]
[1610328833180,1.93791199,37639.0,37613.0,0.01901643]
[1610328833383,5.11879747,37640.0,37626.0,0.13632608]
[1610328833581,0.2815,37639.0,37626.0,0.13632608]
[1610328833781,0.2815,37639.0,37627.0,0.0002567]
[1610328834181,3.1806,37640.0,37627.0,0.0002567]
[1610328834782,3.1806,37640.0,37627.0,0.0190056]
[1610328835383,3.1806,37640.0,37639.0,0.13632608]
[1610328835782,3.1806,37640.0,37639.0,0.24078505]
[1610328836983,3.1806,37640.0,37639.0,0.22204261]
[1610328838486,0.13632608,37652.0,37639.0,0.22204261]
[1610328838984,0.13632608,37652.0,37640.0,0.00025653]
[1610328839384,0.13632608,37652.0,37651.0,0.13632608]
[1610328839784,0.13632608,37652.0,37651.0,0.13658261]
[1610328840885,0.13632608,37652.0,37651.0,0.13632608]
[1610328841285,0.13632608,37652.0,37641.0,0.13632608]
[1610328841687,0.13632608,37652.0,37642.0,0.00025652]
[1610328842289,0.13632608,37652.0,37640.0,0.00025652]
[1610328842489,0.13632608,37652.0,37643.0,0.00025652]
[1610328842688,0.13632608,37652.0,37640.0,0.00025654]
[1610328843089,0.13632608,37652.0,37639.0,0.08546]
[1610328843289,4.5595,37658.0,37641.0,0.00025652]
[1610328843488,4.5595,37658.0,37641.0,0.09885]
[1610328843789,4.5595,37658.0,37642.0,0.00025652]
[1610328845391,0.13632608,37643.0,37642.0,0.00025652]
[1610328845591,0.13632608,37643.0,37641.0,0.09885]
[1610328845991,0.13632608,37643.0,37642.0,0.00025392]
[1610328848792,0.13632608,37643.0,37641.0,0.09885]
[1610328848993,0.13632608,37643.0,37635.0,0.13632608]
[1610328849193,0.13632608,37643.0,37642.0,0.00025391]
[1610328849391,0.13632608,37643.0,37642.0,0.09729]
[1610328849592,0.13632608,37643.0,37642.0,0.09754391]
[1610328849992,0.13632608,37643.0,37642.0,0.09729]
[1610328850192,0.13632608,37643.0,37642.0,0.0975439]
[1610328851292,0.13632608,37643.0,37642.0,0.09729]
[1610328852694,0.13632608,37643.0,37626.0,0.07719]
[1610328852893,0.13632608,37643.0,37588.0,0.04043123]
[1610328853296,0.13632608,37643.0,37613.0,0.00025402]
[1610328853493,0.2844,37647.0,37613.0,0.09983]
[1610328853694,0.2739,37642.0,37613.0,0.09983]
[1610328853894,0.2739,37642.0,37614.0,0.00025404]
[1610328855395,0.13632608,37615.0,37614.0,0.00025404]
[1610328856997,0.13632608,37615.0,37550.0,0.10718442]
[1610328856998,0.13632608,37615.0,37563.0,0.01796779]
[1610328857198,0.13632608,37615.0,37563.0,0.01771365]
[1610328857397,0.09252,37619.0,37600.0,0.13632608]
[1610328857598,0.09252,37619.0,37600.0,0.23464608]
[1610328857797,0.09252,37619.0,37601.0,0.00025415]
[1610328859401,0.13632608,37602.0,37601.0,0.00025415]
[1610328864307,3.5047,37616.0,37601.0,0.00025415]
[1610328865307,3.5047,37616.0,37601.0,0.0179585]
[1610328865509,3.5047,37616.0,37615.0,0.13632608]
[1610328865710,3.5047,37616.0,37615.0,0.24888005]
[1610328867309,3.5047,37616.0,37615.0,0.26657509]
[1610328868409,3.5047,37616.0,37615.0,0.24888005]
[1610328868611,0.13632608,37620.0,37615.0,0.24888005]
[1610328869011,0.295,37644.0,37616.0,0.00025395]
[1610328869410,0.2931,37655.0,37620.0,0.13632608]
[1610328869810,0.2838,37654.0,37620.0,0.13632608]
[1610328870010,0.2838,37654.0,37621.0,0.00025395]
[1610328871511,0.2838,37654.0,37624.0,0.13632608]
[1610328871810,0.2838,37654.0,37625.0,0.00025397]
[1610328873413,0.13632608,37626.0,37625.0,0.00025397]